bitfinex/quotes_SOLUSD_20240905
["timestamp","ask_amount","ask_price","bid_price","bid_amount"]
[1725574918879,7.7665,128.76,128.74,0.8477435]
[1725574920768,7.7661,128.77,128.74,0.8477435]
[1725574920974,20.0,128.76,128.74,0.8477435]
[1725574921782,20.0,128.78,128.74,0.8477435]
[1725574922550,7.7669,128.75,128.74,0.8477435]
[1725574923448,7.7661,128.77,128.74,0.8477435]
[1725574923673,19.4085,128.81,128.75,7.7669]
[1725574923872,7.7652,128.78,128.74,8.6150435]
[1725574924379,19.4085,128.81,128.74,0.8477435]
[1725574924879,7.7661,128.77,128.74,8.6152435]
[1725574925461,7.7654,128.78,128.74,8.6152435]
[1725574927360,19.4085,128.81,128.74,10.16845642]
[1725574927675,7.7655,128.78,128.74,8.6152435]
[1725574930182,65.0,128.8,128.74,0.8477435]
[1725574930361,7.7664,128.76,128.74,0.8477435]
[1725574930883,7.766,128.77,128.74,0.8477435]
[1725574931381,7.7668,128.76,128.74,0.8477435]
[1725574931596,7.7666,128.76,128.74,0.8477435]
[1725574932893,7.7659,128.77,128.74,0.8477435]
[1725574933390,7.7669,128.75,128.74,0.8477435]
[1725574933557,27.7669,128.75,128.74,0.8477435]
[1725574934681,7.7694,128.71,128.68,15.301]
[1725574934983,65.0,128.75,128.65,7.7727]
[1725574934984,7.77,128.7,128.65,7.7727]
[1725574935281,20.0,128.75,128.66,19.4301]
[1725574935483,20.0,128.75,128.68,21.9021]
[1725574935688,20.0,128.74,128.69,27.1965]
[1725574936285,7.7682,128.73,128.69,27.1965]
[1725574936491,7.7682,128.73,128.69,19.4265]
[1725574938767,7.7682,128.73,128.69,27.197]
[1725574939293,7.7682,128.73,128.69,19.4265]
[1725574939461,7.7694,128.71,128.68,21.9021]
[1725574940082,7.7687,128.73,128.68,21.9021]
[1725574940287,7.769,128.72,128.68,21.9021]
[1725574940462,27.7694,128.71,128.68,21.9021]
[1725574941481,20.0,128.71,128.68,21.9021]
[1725574941667,7.7674,128.75,128.69,1.55392283]
[1725574941993,20.0,128.74,128.7,27.1942]
[1725574942186,7.7674,128.75,128.71,9.32287386]
[1725574942487,7.7674,128.75,128.7,27.1942]
[1725574942782,7.7677,128.74,128.7,27.1942]
[1725574942977,19.4136,128.78,128.68,29.6728]
[1725574943164,7.7699,128.71,128.68,21.9021]
[1725574943861,7.769,128.72,128.68,21.9021]
[1725574944285,7.7683,128.73,128.68,29.6733]
[1725574944481,19.4166,128.76,128.68,21.9021]
[1725574944691,7.768,128.74,128.7,7.77]
[1725574944880,20.0,128.73,128.7,7.77]
[1725574947082,27.7682,128.73,128.69,7.7704]
[1725574948169,27.7682,128.73,128.7,1.55376072]
[1725574948375,27.7682,128.73,128.69,7.7704]
[1725574950170,19.4127,128.79,128.68,60.7568]
[1725574950373,7.7668,128.76,128.71,27.1925]
[1725574950791,7.7669,128.75,128.71,27.1925]
[1725574952486,7.7665,128.76,128.72,7.7687]
[1725574953165,7.7659,128.77,128.71,19.4234]
[1725574953370,20.0,128.76,128.72,22.6946]
[1725574954086,20.0,128.76,128.72,15.1946]
[1725574954294,20.0,128.76,128.73,27.1872]
[1725574954501,30.02101129,128.82,128.73,27.1872]
[1725574954502,20.0,128.77,128.73,27.1872]
[1725574954896,20.0,128.8,128.75,7.7669]
[1725574955210,10.41154701,128.81,128.77,7.7657]
[1725574955494,7.7628,128.82,128.78,9.31789651]
[1725574955703,7.7628,128.82,128.78,7.7651]
[1725574956567,7.7635,128.81,128.77,27.1795]
[1725574957201,7.7635,128.81,128.77,43.4435]
[1725574958005,38.8099,128.84,128.74,15.9867]
[1725574958189,7.7669,128.75,128.74,15.9867]
[1725574958688,27.7669,128.75,128.7,49.6925]
[1725574958873,7.7669,128.75,128.7,49.6925]
[1725574959077,7.7669,128.75,128.71,7.7693]
[1725574960693,7.7665,128.76,128.71,7.7693]
[1725574960881,20.0,128.75,128.71,7.7693]
[1725574961083,27.767,128.75,128.71,7.7693]
[1725574961276,20.0,128.75,128.72,7.7685]
[1725574961471,27.4718908,128.82,128.74,7.7675]
[1725574961796,7.765,128.79,128.74,7.7675]
[1725574962097,30.10952348,128.82,128.74,7.7675]
[1725574962098,7.7653,128.78,128.74,7.7675]
[1725574963798,7.7659,128.77,128.73,7.7681]
[1725574964178,7.7659,128.77,128.73,7.768]
[1725574964487,30.10952348,128.82,128.74,20.97188374]
[1725574964689,65.0,128.81,128.71,19.4221]
[1725574964878,19.4104,128.8,128.72,7.7684]
[1725574965074,7.767,128.75,128.71,19.4221]
[1725574965293,7.7665,128.76,128.72,7.7686]
[1725574966108,20.0,128.79,128.74,7.7675]
[1725574966109,7.7653,128.78,128.74,7.7675]
[1725574966281,27.7649,128.79,128.74,7.7675]
[1725574966599,7.7664,128.76,128.7,80.7704]
[1725574966784,7.767,128.75,128.71,7.7689]
[1725574970192,7.7677,128.74,128.7,49.6917]
[1725574971570,7.7672,128.75,128.71,9.3229807]
[1725574971770,39.4117,128.79,128.72,19.4217]
[1725574971999,7.7661,128.77,128.73,9.32145503]
[1725574972194,7.7655,128.78,128.74,7.7674]
[1725574972396,20.0,128.77,128.74,7.7674]
[1725574972587,7.7655,128.78,128.74,7.7674]
[1725574973798,7.7658,128.77,128.73,7.768]
[1725574976779,7.7642,128.8,128.76,7.7663]
[1725574976985,7.7642,128.8,128.77,1.5529521]
[1725574977579,7.7642,128.8,128.76,7.7663]
[1725574978492,7.7642,128.8,128.77,1.55295731]
[1725574979386,7.7642,128.8,128.76,7.7663]
[1725574980904,7.7642,128.8,128.76,30.7967]
[1725574982179,10.69669171,128.82,128.77,19.4144]
[1725574982411,27.7637,128.81,128.77,27.1798]
[1725574982612,7.7639,128.8,128.77,19.4144]
[1725574982785,7.7639,128.8,128.76,30.7964]
[1725574983999,7.7666,128.76,128.73,35.9779]
[1725574984208,7.7666,128.76,128.73,43.746]
[1725574984693,7.7666,128.76,128.73,35.9779]
[1725574985310,7.7666,128.76,128.73,16.5575]
[1725574985797,19.41,128.8,128.73,16.5575]
[1725574985798,7.767,128.75,128.73,16.5575]
[1725574986411,7.7664,128.76,128.73,16.5575]
[1725574986607,22.6920149,128.81,128.73,16.5575]
[1725574986809,45.0,128.8,128.74,19.4186]
[1725574986983,7.7667,128.76,128.73,16.5575]
[1725574987304,7.7659,128.77,128.73,24.3256]
[1725574990102,45.0,128.8,128.74,1.5532539]
[1725574990310,27.7649,128.79,128.75,7.7666]
[1725574990613,7.7664,128.76,128.73,16.5575]
[1725574990912,7.766,128.77,128.73,16.5575]
[1725574991110,7.766,128.77,128.73,24.3256]
[1725574992811,65.0,128.76,128.71,16.5575]
[1725574993231,7.7679,128.74,128.71,16.5575]
[1725574995116,7.7682,128.73,128.71,16.5575]
[1725574996286,20.0,128.76,128.72,1.55361656]
[1725574996487,7.7667,128.76,128.72,9.32221656]
[1725574996713,20.0,128.75,128.72,9.32221656]
[1725574997420,27.767,128.75,128.72,9.32221656]
[1725574997621,27.767,128.75,128.72,1.55361656]
[1725574997934,27.767,128.75,128.71,35.9808]
[1725574997935,7.7676,128.74,128.71,35.9808]
[1725574998109,7.7676,128.74,128.71,43.7501]
[1725574999010,27.7672,128.75,128.71,43.7501]
[1725575000397,7.7676,128.74,128.71,43.7501]
[1725575001212,27.7671,128.75,128.71,43.7501]
[1725575001389,7.7677,128.74,128.71,35.9808]
[1725575005420,7.7681,128.73,128.71,16.5575]
[1725575006515,7.7678,128.74,128.71,16.5575]
[1725575006716,7.7673,128.75,128.72,1.55359818]
[1725575006923,7.7664,128.76,128.72,9.32179818]
[1725575007218,7.7677,128.74,128.71,16.5575]
[1725575007422,7.7688,128.72,128.71,16.5575]
[1725575007603,7.7685,128.73,128.71,16.5575]
[1725575007805,7.7685,128.73,128.71,18.11116744]
[1725575008025,7.7685,128.73,128.71,16.5575]
[1725575011022,7.7677,128.74,128.71,16.5575]
[1725575011611,7.7682,128.73,128.71,16.5575]
[1725575016127,7.768,128.74,128.71,16.5575]
[1725575019632,7.7672,128.75,128.72,7.7687]
[1725575020005,7.7672,128.75,128.71,43.7498]
[1725575021232,7.7672,128.75,128.72,7.7686]
[1725575021523,7.7672,128.75,128.71,43.7497]
[1725575022127,7.7672,128.75,128.71,45.30322506]
[1725575022331,7.7676,128.74,128.71,45.30322506]
[1725575022828,7.7676,128.74,128.71,43.7497]
[1725575023001,7.7672,128.75,128.71,43.7497]
[1725575025029,7.7672,128.75,128.72,9.32212245]
[1725575025918,7.7676,128.74,128.71,43.75]
[1725575026319,7.7671,128.75,128.71,43.75]
[1725575027321,7.7665,128.76,128.72,7.7687]
[1725575027540,7.7665,128.76,128.73,9.32147373]
[1725575027833,7.766,128.77,128.74,1.55330804]
[1725575028335,7.7654,128.78,128.74,9.32080804]
[1725575028525,7.7646,128.79,128.75,7.7668]
[1725575028834,7.7653,128.78,128.76,1.55308331]
[1725575030034,7.7653,128.78,128.74,27.1855]
[1725575031332,7.7659,128.77,128.74,19.4182]
[1725575032033,7.7664,128.76,128.72,7.7685]
[1725575032333,64.4112,128.8,128.73,7.768]
[1725575032334,7.766,128.77,128.73,7.768]
[1725575035218,7.7667,128.76,128.72,27.1891]
[1725575036537,7.7667,128.76,128.73,7.768]
[1725575037446,7.7671,128.75,128.72,27.1892]
[1725575037742,7.7666,128.76,128.72,27.1892]
[1725575039738,7.767,128.75,128.72,27.1892]
[1725575040035,7.7666,128.76,128.72,27.1892]
[1725575040238,7.7666,128.76,128.73,1.55342437]
[1725575040451,7.766,128.77,128.74,7.7674]
[1725575040638,7.766,128.77,128.73,7.768]
[1725575040823,7.7664,128.76,128.73,7.768]
[1725575041427,46.87522652,128.82,128.71,24.3268]
[1725575041744,7.7673,128.75,128.71,43.7502]
[1725575044943,7.7673,128.75,128.72,9.32219388]
[1725575045124,7.7673,128.75,128.71,43.7502]
[1725575045325,7.7676,128.74,128.71,43.7502]
[1725575045622,7.7685,128.73,128.69,27.1965]
[1725575045830,7.7688,128.72,128.69,27.1965]
[1725575046037,7.7684,128.73,128.69,27.1965]
[1725575046634,7.7684,128.73,128.69,28.75028076]
[1725575050122,7.7673,128.75,128.71,27.1924]
[1725575050456,7.7673,128.75,128.72,1.55348749]
[1725575051546,7.7673,128.75,128.72,9.32218749]
[1725575052020,7.7664,128.76,128.72,9.32218749]
[1725575053726,7.7664,128.76,128.73,15.9474]
[1725575055838,7.7664,128.76,128.74,1.55336273]
[1725575056024,7.7659,128.77,128.73,23.7155]
[1725575056225,7.7653,128.78,128.73,15.9474]
[1725575056424,2.59728124,128.79,128.78,7.7651]
[1725575056729,7.7623,128.83,128.79,27.1757]
[1725575057533,7.7628,128.82,128.79,19.4113]
[1725575057730,7.7634,128.81,128.78,15.9474]
[1725575058135,7.7634,128.81,128.78,23.7125]
[1725575058738,2.62438479,128.81,128.78,15.9474]
[1725575059044,19.4084,128.81,128.75,15.9474]
[1725575059222,65.0,128.8,128.75,15.9474]
[1725575059831,7.766,128.77,128.75,15.9474]
[1725575060157,2.58596119,128.83,128.76,7.7663]
[1725575060328,2.58596119,128.83,128.75,15.9474]
[1725575060329,45.0,128.83,128.77,1.55292306]
[1725575060650,45.0,128.83,128.75,15.9474]
[1725575060651,7.7651,128.78,128.75,15.9474]
[1725575061149,7.7652,128.78,128.75,23.7142]
[1725575063749,7.7647,128.79,128.75,23.7142]
[1725575068157,47.46637584,128.82,128.75,15.9474]
[1725575068356,45.0,128.81,128.75,15.9474]
[1725575068540,7.7669,128.75,128.72,15.945]
[1725575069142,7.7669,128.75,128.72,23.7137]
[1725575069659,7.7666,128.76,128.72,23.7137]
[1725575072980,7.7659,128.77,128.73,7.7681]
[1725575073143,7.7659,128.77,128.74,7.7675]
[1725575073463,7.7659,128.77,128.75,1.55316299]
[1725575073962,20.0,128.8,128.75,1.55316299]
[1725575073963,7.7654,128.78,128.75,1.55316299]
[1725575074359,7.7658,128.77,128.75,1.55316299]
[1725575074964,7.7658,128.77,128.75,1.55316572]
[1725575075177,7.7658,128.77,128.74,7.7675]
[1725575076556,7.7667,128.76,128.72,35.3655]
[1725575076756,7.7667,128.76,128.72,43.1337]
[1725575078771,7.766,128.77,128.74,7.7675]
[1725575079153,7.7649,128.79,128.75,7.7666]
[1725575080051,7.7652,128.78,128.75,7.7666]
[1725575081170,7.7648,128.79,128.75,7.7666]
[1725575081471,7.7648,128.79,128.76,1.55302356]
[1725575083673,19.4039,128.84,128.77,1.55299797]
[1725575083967,7.7635,128.81,128.77,24.76259797]
[1725575085152,7.763,128.82,128.77,34.8571]
[1725575085363,7.763,128.82,128.78,1.55262343]
[1725575086073,7.7624,128.83,128.79,9.31695759]
[1725575086250,7.7624,128.83,128.8,1.55256722]
[1725575087961,7.7624,128.83,128.8,7.7639]
[1725575088461,7.7612,128.85,128.81,9.31569926]
[1725575088762,7.7606,128.86,128.82,7.7623]
[1725575089670,20.0,128.85,128.83,7.7621]
[1725575089972,20.0,128.85,128.82,23.2068]
[1725575090765,7.7599,128.87,128.83,28.71938757]
[1725575091167,7.7605,128.86,128.83,19.4053]
[1725575091667,7.7599,128.87,128.83,19.4053]
[1725575091872,7.7599,128.87,128.83,27.167]
[1725575092065,7.7599,128.87,128.84,1.55202169]
[1725575092571,7.7594,128.88,128.84,9.31332169]
[1725575093377,2.60559802,128.89,128.83,19.4053]
[1725575093560,7.7592,128.88,128.84,7.7611]
[1725575093764,7.7592,128.88,128.85,7.7609]
[1725575094076,7.7585,128.89,128.85,27.1626]
[1725575094390,19.3886,128.95,128.86,24.5137981]
[1725575094882,7.7574,128.91,128.87,7.7593]
[1725575095186,7.7569,128.92,128.88,7.759]
[1725575095479,7.7569,128.92,128.89,1.55141913]
[1725575095675,2.5683776,128.97,128.89,19.396]
[1725575095885,19.3835,128.98,128.89,19.396]
[1725575096058,7.755,128.95,128.91,7.757]
[1725575096566,7.755,128.95,128.91,24.4137]
[1725575096948,7.755,128.95,128.91,30.7191]
[1725575097152,7.755,128.95,128.92,1.55099762]
[1725575097357,7.7544,128.96,128.92,1.55099762]
[1725575097563,20.0,128.95,128.92,1.55099762]
[1725575097856,27.755,128.95,128.92,1.55099762]
[1725575098059,27.755,128.95,128.91,30.7191]
[1725575098672,27.755,128.95,128.92,1.55099707]
[1725575099184,7.7535,128.98,128.93,9.30668852]
[1725575099480,19.3793,129.01,128.94,7.7551]
[1725575099659,7.7526,128.99,128.95,7.7549]
[1725575100257,7.94768835,129.03,128.95,19.3869]
[1725575100258,2.61828835,129.03,128.95,19.3869]
[1725575100461,19.3749,129.04,128.96,16.6567]
[1725575100663,22.05232455,129.04,128.96,16.6567]
[1725575100859,7.7502,129.03,128.98,27.1355]
[1725575101074,7.7508,129.02,128.98,19.3825]
[1725575101261,20.2176435,129.07,128.97,14.0589]
[1725575101262,7.752,129.0,128.97,6.3054]
[1725575103088,7.7526,128.99,128.97,6.3054]
[1725575103269,7.752,129.0,128.97,6.3054]
[1725575103472,19.3731,129.05,128.97,6.3054]
[1725575103778,20.0,129.04,128.97,6.3054]
[1725575104159,7.7526,128.99,128.97,6.3054]
[1725575104361,7.752,129.0,128.98,1.55049147]
[1725575104569,7.752,129.0,128.97,6.3054]
[1725575107788,7.7514,129.01,128.97,14.059]
[1725575108012,7.7505,129.03,128.98,7.753]
[1725575108193,7.7502,129.03,128.99,9.30216649]
[1725575108369,7.7494,129.05,129.0,7.7514]
[1725575108568,7.7495,129.04,129.02,15.5366]
[1725575108871,7.7495,129.04,129.03,1.5498715]
[1725575109883,0.8477435,129.07,129.03,1.5498715]
[1725575110184,7.7489,129.05,129.03,1.5498715]
[1725575110375,7.7495,129.04,129.02,15.5366]
[1725575110682,7.7501,129.03,129.02,15.5366]
[1725575111087,20.2174435,129.07,129.02,15.5366]
[1725575111389,45.0,129.06,129.02,15.5366]
[1725575111560,20.0,129.05,129.02,15.5366]
[1725575112382,7.7496,129.04,129.02,15.5366]
[1725575112565,20.0,129.05,129.02,15.5366]
[1725575112566,27.7491,129.05,129.02,15.5366]
[1725575113681,20.0,129.05,129.02,23.2869]
[1725575113887,20.0,129.05,129.03,1.5497017]
[1725575114470,20.0,129.05,129.02,23.2869]
[1725575115509,20.0,129.05,129.03,6.5709]
[1725575117068,8.5956435,129.07,129.03,14.3209]
[1725575117278,0.8477435,129.07,129.04,9.29862046]
[1725575117472,0.8477435,129.07,129.05,1.54934855]
[1725575117473,20.8477435,129.07,129.05,1.54934855]
[1725575117691,20.8477435,129.07,129.03,6.5709]
[1725575118002,0.8477435,129.07,129.03,6.5709]
[1725575118300,20.8477435,129.07,129.04,9.29848893]
[1725575118466,20.8477435,129.07,129.05,1.54948043]
[1725575118671,20.8477435,129.07,129.04,7.7491]
[1725575119084,20.8477435,129.07,129.05,1.54948196]
[1725575119288,0.8477435,129.07,129.06,7.7483]
[1725575119776,0.8477435,129.07,129.05,27.1199]
[1725575120199,0.8477435,129.07,129.06,1.54926175]
[1725575120581,0.8477435,129.07,129.05,27.1199]
[1725575121186,0.8477435,129.07,129.03,6.5709]
[1725575121381,0.8477435,129.07,129.03,14.3205]
[1725575121382,28.5955435,129.07,129.03,14.3205]
[1725575121583,20.0,129.06,129.02,15.5366]
[1725575121784,27.7485,129.06,129.02,15.5366]
[1725575122494,7.7492,129.05,129.02,15.5366]
[1725575122803,7.7496,129.04,129.02,15.5366]
[1725575123040,7.749,129.05,129.02,15.5366]
[1725575124501,20.0,129.06,128.98,22.2003]
[1725575124682,7.7502,129.03,128.98,29.953]
[1725575124999,7.7502,129.03,128.99,7.7523]
[1725575125800,7.7514,129.01,128.98,22.2003]
[1725575126182,7.7509,129.02,128.98,22.2003]
[1725575126597,20.0,129.01,128.98,15.7894]
[1725575126993,27.7517,129.01,128.98,15.7894]
[1725575127306,7.7523,129.0,128.98,15.7894]
[1725575128812,20.0,129.01,128.95,22.2003]
[1725575128988,45.0,129.0,128.92,15.7894]
[1725575129182,20.0,128.99,128.92,15.7894]
[1725575129384,45.0,128.98,128.92,15.7894]
[1725575129581,20.0,128.97,128.92,15.7894]
[1725575131317,7.7544,128.96,128.92,15.7894]
[1725575132790,20.0,128.97,128.93,9.30654348]
[1725575133586,7.7531,128.98,128.94,7.7554]
[1725575133806,20.0,128.97,128.94,7.7554]
[1725575135316,20.0,128.97,128.95,1.55068687]
[1725575136315,27.31152944,129.04,128.96,1.55068708]
[1725575136491,7.7509,129.02,128.97,7.7537]
[1725575136692,7.7509,129.02,128.98,1.55023264]
[1725575138106,20.0,129.01,128.98,17.82653264]
[1725575138311,20.0,129.01,128.99,1.55026999]
[1725575138890,27.7513,129.01,128.99,1.55026999]
[1725575140119,27.7513,129.01,128.98,16.2763]
[1725575140985,20.0,129.01,128.98,24.0293]
[1725575142794,27.7513,129.01,128.98,24.0293]
[1725575144723,20.0,129.01,128.98,24.0293]
[1725575145416,27.7515,129.01,128.98,16.2763]
[1725575146214,7.7525,128.99,128.98,16.2763]
[1725575146424,20.0,129.01,128.96,27.1397]
[1725575146593,19.3749,129.04,128.96,27.1397]
[1725575146594,7.7526,128.99,128.96,27.1397]
[1725575146794,7.7526,128.99,128.96,19.3855]
[1725575147609,20.0,128.98,128.93,19.3892]
[1725575148026,7.7546,128.96,128.93,19.3892]
[1725575148613,7.7538,128.97,128.93,27.145]
[1725575149904,19.3813,128.99,128.92,24.0329]
[1725575150105,19.3813,128.99,128.92,16.2763]
[1725575150106,65.0,128.98,128.92,16.2763]
[1725575150302,65.0,128.98,128.9,6.5714]
[1725575150622,7.7562,128.93,128.89,16.2763]
[1725575151520,7.7562,128.93,128.89,24.0346]
[1725575158524,7.7562,128.93,128.9,7.7577]
[1725575159029,7.7562,128.93,128.89,35.6726]
[1725575159030,7.7562,128.93,128.89,43.4309]
[1725575159333,7.7556,128.94,128.9,7.7576]
[1725575159632,27.7561,128.93,128.91,1.55121558]
[1725575159930,27.7561,128.93,128.9,7.7576]
[1725575160110,27.7561,128.93,128.89,43.431]
[1725575162418,20.0,128.93,128.9,7.7579]
[1725575162622,20.0,128.93,128.91,1.55113299]
[1725575163628,7.755,128.95,128.91,1.55113299]
[1725575163821,7.755,128.95,128.9,19.3934]
[1725575164721,7.7539,128.97,128.93,7.7558]
[1725575166028,19.3799,129.0,128.92,27.147]
[1725575166029,7.7548,128.96,128.92,27.147]
[1725575168339,7.7539,128.97,128.93,7.756]
[1725575168542,20.0,128.96,128.93,7.756]
[1725575169635,7.7523,129.0,128.97,7.7536]
[1725575169930,2.58017835,129.02,128.97,19.3837]
[1725575170135,7.7517,129.01,128.97,27.1372]
[1725575170331,7.7517,129.01,128.97,19.3837]
[1725575170509,7.7521,129.0,128.97,19.3837]
[1725575170709,7.7521,129.0,128.96,7.7541]
[1725575170930,20.0,128.99,128.96,7.7541]
[1725575171720,27.7526,128.99,128.95,23.8867]
[1725575174441,27.7526,128.99,128.96,7.7543]
[1725575175612,20.0,128.99,128.96,7.7543]
[1725575176013,27.7525,128.99,128.96,7.7543]
[1725575176227,7.7531,128.98,128.95,16.132]
[1725575176440,20.0,128.99,128.92,22.2994]
[1725575176639,20.0,128.99,128.92,16.132]
[1725575176640,7.7553,128.95,128.92,16.132]
[1725575178743,19.3844,128.97,128.9,7.7578]
[1725575178926,65.0,128.96,128.89,6.1674]
[1725575179955,7.7557,128.94,128.9,7.7575]
[1725575183362,7.7551,128.95,128.91,7.7572]
[1725575183534,20.0,128.94,128.91,7.7572]
[1725575183742,20.0,128.94,128.92,9.30782006]
[1725575184244,20.0,128.95,128.92,9.30782006]
[1725575184458,20.0,128.95,128.93,1.55100699]
[1725575184663,27.7549,128.95,128.93,1.55100699]
[1725575185440,27.7549,128.95,128.92,1.55100769]
[1725575186057,27.7549,128.95,128.92,9.30770769]
[1725575186232,20.0,128.95,128.93,1.55100774]
[1725575186429,7.7543,128.96,128.93,9.30710774]
[1725575186671,20.0,128.95,128.93,7.7561]
[1725575186835,20.0,128.95,128.94,1.55094819]
[1725575187631,20.0,128.95,128.92,7.7566]
[1725575187836,20.0,128.95,128.93,1.55094837]
[1725575188162,20.0,128.95,128.91,19.393]
[1725575188363,7.7559,128.94,128.91,19.393]
[1725575188539,7.7559,128.94,128.91,27.1503]
[1725575188743,7.7551,128.95,128.91,27.1503]
[1725575189552,7.7545,128.96,128.92,7.7565]
[1725575189753,20.0,128.95,128.93,1.5509046]
[1725575190431,20.0,128.95,128.92,7.7565]
[1725575191162,7.7532,128.98,128.94,7.7551]
[1725575191539,27.29052966,129.0,128.9,19.3935]
[1725575191757,7.7549,128.95,128.91,7.7569]
[1725575192165,7.7545,128.96,128.92,9.30769067]
[1725575192472,7.7545,128.96,128.93,1.55085893]
[1725575192775,20.0,128.95,128.93,1.55085893]
[1725575193082,20.0,128.95,128.93,7.756]
[1725575193641,20.0,128.96,128.94,7.7554]
[1725575195368,20.0,128.96,128.93,27.1461]
[1725575196470,20.0,128.96,128.94,7.7554]
[1725575196644,20.0,128.97,128.94,7.7554]
[1725575197371,27.7538,128.97,128.94,7.7554]
[1725575197747,27.7538,128.97,128.93,27.1459]
[1725575198867,19.3765,129.03,128.95,19.3868]
[1725575199065,19.3765,129.03,128.96,7.7539]
[1725575199066,7.7523,129.0,128.96,7.7539]
[1725575200443,20.0,128.99,128.96,7.7539]
[1725575204076,20.0,128.99,128.98,7.7531]
[1725575204767,7.7511,129.02,128.99,7.7524]
[1725575204975,20.0,129.01,128.99,7.7524]
[1725575205669,20.0,129.01,128.98,7.7528]
[1725575209647,7.7503,129.03,128.98,19.3814]
[1725575209852,7.7503,129.03,128.99,1.55016599]
[1725575210049,20.0,129.02,128.99,1.55016599]
[1725575210749,20.0,129.02,128.99,9.30236599]
[1725575211944,20.0,129.02,129.0,7.7519]
[1725575212578,7.7497,129.04,129.01,7.7513]
[1725575212789,20.0,129.03,129.01,7.7513]
[1725575217158,7.7485,129.06,129.02,7.7503]
[1725575217362,7.7485,129.06,129.02,27.1269]
[1725575217749,7.7485,129.06,129.03,9.2997253]
[1725575218161,7.7485,129.06,129.03,7.75]
[1725575218678,8.5956435,129.07,129.04,9.29906727]
[1725575219059,20.0,129.06,129.04,9.29906727]
[1725575219258,20.0,129.06,129.04,27.123]
[1725575219460,0.8477435,129.07,129.05,7.7487]
[1725575219660,0.8477435,129.07,129.04,19.3736]
[1725575219661,0.8477435,129.07,129.06,28.66854216]
[1725575220268,0.8477435,129.07,129.06,27.1191]
[1725575220886,0.8477435,129.07,129.06,28.66813178]
[1725575221880,0.8477435,129.07,129.06,27.1191]
[1725575223157,0.8477435,129.07,129.06,28.66834952]
[1725575223561,0.8477435,129.07,129.06,27.1191]
[1725575224064,0.8477435,129.07,129.06,72.1191]
[1725575229782,0.8477435,129.07,129.06,122.1191]
[1725575230693,0.8477435,129.07,129.06,135.37733981]
[1725575231877,5.3294,129.17,129.12,7.7443]
[1725575232083,5.3294,129.17,129.13,1.54858345]
[1725575232084,20.0,129.16,129.13,1.54858345]
[1725575232484,20.0,129.16,129.13,7.7439]
[1725575232779,7.7413,129.18,129.13,7.7439]
[1725575232984,20.0,129.17,129.13,7.7439]
[1725575233195,20.0,129.17,129.13,19.3597]
[1725575233611,23.51088892,129.2,129.13,19.3597]
[1725575234312,23.51088892,129.2,129.1,41.4345]
[1725575234602,7.7418,129.17,129.12,7.7445]
[1725575234812,20.0,129.16,129.12,7.7445]
[1725575234979,20.0,129.16,129.11,7.7452]
[1725575235382,6.1769,129.19,129.07,35.2211]
[1725575235681,6.2935,129.17,129.07,35.2211]
[1725575235887,6.2935,129.17,129.07,15.8528]
[1725575235888,7.7463,129.1,129.07,15.8528]
[1725575236887,7.7454,129.11,129.07,15.8528]
[1725575237086,20.0,129.1,129.07,15.8528]
[1725575237485,20.0,129.1,129.06,7.7482]
[1725575238910,20.0,129.1,129.07,1.54918929]
[1725575239505,20.0,129.1,129.07,9.29678929]
[1725575239712,20.0,129.1,129.08,1.54914406]